{"text_format":"1","workbook":"xlsx","n_sheets":14,"sheets":["Cover","Info","Results","E01","E02","E03","E04","E05","E06","E07","E08","E09","E10","About"],"not_rendered":{"charts":11,"images":37,"macros":1,"external_links":0,"defined_names":15,"comments":0,"pivot_tables":0},"unopened":[],"bounds":{"document_bytes":16777216,"sheet_cells":100000,"rows_first":2000,"rows_last":500,"rows_between":2000,"halvings":0,"cell_chars":16384,"cell_head_chars":4096},"cells_cut":0,"cells_raw":0,"read":"whole","date_system":"1900"}

{"sheet":"Cover","index":0,"n_rows":0,"n_cols":0,"rows_kept":0,"cut":false,"hidden":false,"merged":[]}

{"sheet":"Info","index":1,"n_rows":39,"n_cols":4,"rows_kept":39,"cut":false,"hidden":false,"merged":[[0,0,0,16383],[38,1,38,3],[39,1,39,3],[2,1,2,2],[3,1,3,2],[4,1,4,2],[5,1,5,2],[6,1,6,2],[37,1,37,3],[31,1,31,2],[32,1,32,2],[33,1,33,2],[34,1,34,2],[35,1,35,2]]}
[]
[]
[null,"Questa valutazione",null,"Risposta"]
[null,"Nome della città"]
[null,"Tipo di città (metropoli, area metropolitana, ecc.)"]
[null,"Paese"]
[null,"Data della valutazione"]
[]
[null,"Profilo della città (Richiesto)","Risposta","Data di origine"]
[null,"Titolo più alto ricoperto dall’autorità (per esempio: Sindaco, ecc.)"]
[null,"Numero totale della popolazione:"]
[null,"Estensione della città per km2:"]
[null,"Densità popolativa (per km2):"]
[null,"Popolazione giovane (15-24) (%):"]
[null,"Popolazione anziana (65+) (%):"]
[null,"Genere (nuclei famigliari gestiti da donne):"]
[null,"Tasso di alfabetizzazione (% popolazione alfabetizzata):"]
[null,"Tasso di povertà (% della popolazione non in condizioni di povertà):"]
[null,"Reddito familiare medio (USD):"]
[null,"Residenti non cittadini (%):"]
[null,"Rischio di disastro noto più probabile:"]
[null,"Disastro più grave (noto):"]
[]
[null,"Profilo città della (facoltativo)","Risposta","Data di origine"]
[null,"Numero totale delle famiglie:"]
[null,"Persone per unità:"]
[null,"Costo della vita (USD):"]
[null,"PIL pro capite del paese (USD)"]
[null,"Coefficiente di Gini:"]
[null,"Prodotto urbano pro capite (USD):"]
[]
[null,"Squadra per la riduzione del rischio di disastri e per la resilienza del governo locale",null,"Risposta"]
[null,"Nome della persona che guida / coordina il completamento della valutazione della scorecard:"]
[null,"Organizzazione:"]
[null,"Dettagli del contatto:"]
[null,"Disponibilità a condividere i risultati o ad utilizzarli come esempio / casi studio da parte di UNDRR e partner:"]
[]
[null,"Informazioni sugli attori coinvolti"]
[null,"Elenca di seguito tutte le parti interessate che hanno supportato questa valutazione."]

{"sheet":"Results","index":2,"n_rows":152,"n_cols":13,"rows_kept":152,"cut":false,"hidden":false,"merged":[[113,1,113,3],[96,2,96,5],[104,2,104,5],[105,2,105,5],[99,2,99,5],[111,1,111,2],[34,2,34,5],[89,2,89,5],[90,2,90,5],[91,2,91,5],[41,2,41,5],[42,2,42,5],[43,2,43,5],[52,2,52,5],[59,2,59,5],[65,2,65,5],[57,3,57,6],[39,3,39,6],[63,3,63,6],[69,3,69,6],[77,3,77,6],[73,2,73,5],[71,2,71,5],[72,2,72,5],[74,2,74,5],[94,3,94,5],[102,3,102,6],[97,2,97,5],[98,2,98,5],[79,2,79,5],[80,2,80,5],[81,2,81,5]]}
[]
[]
[]
[]
[]
[]
[]
[]
[]
[]
[]
[]
[]
[]
[]
[]
[]
[]
[]
[]
[]
[]
[]
[]
[]
[]
[]
[]
[]
[]
[]
[]
[null,"Esențialul 01: ",null,{"$f":"D118","v":"Organizzarsi per la Resilienza - Integrazione della sanità pubblica e dell’amministrazione"}]
[]
[null,{"$f":"C130","v":"A1.1"},{"$f":"E130","v":"Il settore sanitario rientra nella governabilità multisettoriale della gestione del rischio di catastrofi"},null,null,null,{"$f":"F130","v":0}]
[]
[]
[]
[]
[null,"Esențialul 02: ",null,{"$f":"D119","v":"Identificare, Comprendere e Utilizzare gli scenari di rischio – Integrazione della sanità pubblica e degli scenari catastrofici"}]
[]
[null,{"$f":"C131","v":"A2.1"},{"$f":"E131","v":"Inclusione di una serie di emergenze e catastrofi (ad esempio, epidemie/pandemie, carestie, penuria d'acqua, ecc.) come scenari di catastrofi a sé stante"},null,null,null,{"$f":"F131","v":0}]
[null,{"$f":"C132","v":"A2.2"},{"$f":"E132","v":"Inclusione degli impatti prevedibili sulla salute pubblica derivanti da altri scenari di rischio di catastrofi (ad esempio, inondazioni, eventi termici, terremoti)"},null,null,null,{"$f":"F132","v":0}]
[null,{"$f":"C133","v":"A2.3"},{"$f":"E133","v":"Inclusione nella pianificazione delle catastrofi di condizioni di salute croniche preesistenti, comprese le malattie non trasmissibili"},null,null,null,{"$f":"F133","v":0}]
[]
[]
[]
[]
[]
[]
[null,"Esențialul 03:",null,{"$f":"D120","v":"Rafforzare la capacità finanziaria di resilienza - Integrazione della sanità pubblica e delle finanze pubbliche"}]
[]
[null,{"$f":"C134","v":"A3.1"},{"$f":"E134","v":"Finanziamenti per gli ambiti di resilienza relativi alla sanità pubblica"},null,null,null,{"$f":"F134","v":0}]
[]
[]
[]
[]
[null,"Esențialul 04:",null,{"$f":"D121","v":"Perseguire uno sviluppo urbano resiliente – Integrazione della sanità pubblica e dei codici di uso del suolo e di costruzione"}]
[]
[null,{"$f":"C135","v":"A4.1"},{"$f":"E135","v":"Conformità delle principali strutture sanitarie con i codici urbanistici ed edilizi resilienti"},null,null,null,{"$f":"F135","v":0}]
[]
[]
[]
[null,"Esențialul 05:",null,{"$f":"D122","v":"Salvaguardia dei Cuscinetti Naturali per Migliorare le Funzioni Protettive Offerte dagli Ecosistemi Naturali – Gestione dei service ecosistemici che incidono sulla sanità pubblica\n"}]
[]
[null,{"$f":"C136","v":"A5.1"},{"$f":"E136","v":"Conservazione e gestione dei servizi ecosistemici che forniscono benefici per la sanità pubblica"},null,null,null,{"$f":"F136","v":0}]
[]
[]
[]
[null,"Esențialul 06:",null,{"$f":"D123","v":"Rafforzare la Capacità Istituzionale di Resilienza – Integrazione della sanità pubblica e della capacità istituzionale"}]
[]
[null,{"$f":"C137","v":"A6.1"},{"$f":"E137","v":"Disponibilità di personale sanitario con abilità e competenze pertinenti per la resilienza alle catastrofi"},null,null,null,{"$f":"F137","v":0}]
[null,{"$f":"C138","v":"A6.2"},{"$f":"E138","v":"Condivisione dei dati del sistema sanitario pubblico con altre parti interessate"},null,null,null,{"$f":"F138","v":0}]
[null,{"$f":"C139","v":"A6.2.1"},{"$f":"E139","v":"Condivisione di altri dati con le parti interessate del sistema sanitario pubblico"},null,null,null,{"$f":"F139","v":0}]
[null,{"$f":"C140","v":"A6.2.2"},{"$f":"E140","v":"Protezione e accesso alle cartelle cliniche individuali"},null,null,null,{"$f":"F140","v":0}]
[]
[]
[null,"Esențialul 07: ",null,{"$f":"D124","v":"Comprendere e Rafforzare la Capacità di Resilienza della Società – Integrazione della salute pubblica e della capacità della società"}]
[]
[null,{"$f":"C141","v":"A7.1"},{"$f":"E141","v":"Efficacia del sistema sanitario pubblico nell'impegno della comunità nel contesto della gestione del rischio di catastrofi"},null,null,null,{"$f":"F141","v":0}]
[null,{"$f":"C142","v":"A7.1.2"},{"$f":"E142","v":"Accesso della Comunità all'informazione in materia di sanità pubblica e fiducia nel suddetto materiale"},null,null,null,{"$f":"F142","v":0}]
[null,{"$f":"C143","v":"A7.2"},{"$f":"E143","v":"Capacità della Comunità di \"tornare alla normalità\" - salute mentale"},null,null,null,{"$f":"F143","v":0}]
[]
[]
[]
[]
[]
[null,"Esențialul 08:",null,{"$f":"D125","v":"Incrementare la Resilienza delle Infrastrutture – Integrazione della salute pubblica e della resilienza delle infrastrutture"}]
[]
[null,{"$f":"C144","v":"A8.1"},{"$f":"E144","v":"Rafforzamento della sicurezza strutturale e non strutturale e della funzionalità degli elementi dell'infrastruttura sanitaria pubblica non considerati in Essenziale 8"},null,null,null,{"$f":"F144","v":0}]
[null,{"$f":"C145","v":"A8.2"},{"$f":"E145","v":"Capacità di intervento delle infrastrutture di sanità pubblica, ove non considerate dall’ Essenziale 8"},null,null,null,{"$f":"F145","v":0}]
[null,{"$f":"C146","v":"A8.3"},{"$f":"E146","v":"Continuità di cura per chi è già malato, dove non considerato dall’Essenziale 8."},null,null,null,{"$f":"F146","v":0}]
[]
[]
[null,"Esențialul 09:",null,{"$f":"D126","v":"Garantire un'efficace risposta alle catastrofi - Integrazione della sanità pubblica e risposta alle catastrofi"}]
[]
[null,{"$f":"C147","v":"A9.1"},{"$f":"E147","v":"Sistemi di allarme rapido per le emergenze sanitarie"},null,null,null,{"$f":"F147","v":0}]
[null,{"$f":"C148","v":"A9.2"},{"$f":"E148","v":"Integrazione della sanità pubblica nella gestione delle emergenze"},null,null,null,{"$f":"F148","v":0}]
[null,{"$f":"C149","v":"A9.3"},{"$f":"E149","v":"Considerazione delle popolazioni a più alto rischio o di quelle che vivono a casa con condizioni di salute compremesse preesistenti"},null,null,null,{"$f":"F149","v":0}]
[null,{"$f":"C150","v":"A9.4"},{"$f":"E150","v":"Abilitatea de a livra materiale de sănătate publică persoanelor care au nevoie"},null,null,null,{"$f":"F150","v":0}]
[]
[]
[null,"Esențialul 10: ",null,{"$f":"D127","v":"Accelerare il Recupero e Ricostruire Meglio - Integrazione della sanità pubblica e della ripresa, del ricostruire meglio"}]
[]
[null,{"$f":"C151","v":"A10.1"},{"$f":"E151","v":"Mitigare gli impatti a lungo termine sulla salute pubblica e sul benessere"},null,null,null,{"$f":"F151","v":0}]
[null,{"$f":"C152","v":"A10.2"},{"$f":"E152","v":"Imparare e migliorare"},null,null,null,{"$f":"F152","v":0}]
[]
[]
[]
[]
[]
[null,{"$f":"TODAY()","v":"2021-02-19"},null,null,null,null,null,{"$f":"Info!$B$4","v":"Nome della città"},{"$f":"Info!$D$4","v":0},null,{"$f":"Info!$B$6","v":"Paese"},{"$f":"Info!$D$6","v":0}]
[]
[]
[]
[]
[null,null,"Label","Name",null,"Essential","TotalScore","MaxScore","Label"]
[null,null,"S1","Organizzarsi per la Resilienza - Integrazione della sanità pubblica e dell’amministrazione",null,"E1",{"$f":"SUMIFS($F$130:$F$189,$B$130:$B$189,F118)","v":0},{"$f":"COUNTIFS($B$130:$B$152,F118)*5","v":5},"01",null,{"$f":"SUM(G118:G127)","v":0},{"$f":"K118/K119","v":0},{"$f":"CONCATENATE(\"Il punteggio complessivo per questa valutazione è  \",SUM(G118:G127),\" / \",SUM(H118:H127))","v":"Il punteggio complessivo per questa valutazione è  0 / 115"}]
[null,null,"S2","Identificare, Comprendere e Utilizzare gli scenari di rischio – Integrazione della sanità pubblica e degli scenari catastrofici",null,"E2",{"$f":"SUMIFS($F$130:$F$1010,$B$130:$B$1010,F119)","v":0},15,"02",null,{"$f":"SUM(H118:H127)","v":115},{"$f":"1-L118","v":1}]
[null,null,"S3","Rafforzare la capacità finanziaria di resilienza - Integrazione della sanità pubblica e delle finanze pubbliche",null,"E3",0,5,"03"]
[null,null,"S4","Perseguire uno sviluppo urbano resiliente – Integrazione della sanità pubblica e dei codici di uso del suolo e di costruzione",null,"E4",0,5,"04"]
[null,null,"S5","Salvaguardia dei Cuscinetti Naturali per Migliorare le Funzioni Protettive Offerte dagli Ecosistemi Naturali – Gestione dei service ecosistemici che incidono sulla sanità pubblica\n",null,"E5",0,5,"05"]
[null,null,"S6","Rafforzare la Capacità Istituzionale di Resilienza – Integrazione della sanità pubblica e della capacità istituzionale",null,"E6",0,20,"06"]
[null,null,"S7","Comprendere e Rafforzare la Capacità di Resilienza della Società – Integrazione della salute pubblica e della capacità della società",null,"E7",0,15,"07"]
[null,null,"S8","Incrementare la Resilienza delle Infrastrutture – Integrazione della salute pubblica e della resilienza delle infrastrutture",null,"E8",0,15,"08"]
[null,null,"S9","Garantire un'efficace risposta alle catastrofi - Integrazione della sanità pubblica e risposta alle catastrofi",null,"E9",0,20,"09"]
[null,null,"S10","Accelerare il Recupero e Ricostruire Meglio - Integrazione della sanità pubblica e della ripresa, del ricostruire meglio",null,"E10",0,10,"10"]
[]
[null,"Section","Ref",null,"Question","SelectedScore","ThisScore"]
[null,"E1",{"$f":"'E01'!$G$5","v":"A1.1"},null,{"$f":"'E01'!I5","v":"Il settore sanitario rientra nella governabilità multisettoriale della gestione del rischio di catastrofi"},{"$f":"IF(G130=\"\",0,IF(G130=0,0,6-G130))","v":0},{"$f":"OFFSET('E01'!$E$1,MATCH(C130,'E01'!G:G,0)+3,0)","v":0}]
[null,"E2",{"$f":"'E02'!$G$5","v":"A2.1"},null,{"$f":"'E02'!I5","v":"Inclusione di una serie di emergenze e catastrofi (ad esempio, epidemie/pandemie, carestie, penuria d'acqua, ecc.) come scenari di catastrofi a sé stante"},{"$f":"IF(G131=\"\",0,IF(G131=0,0,6-G131))","v":0},{"$f":"OFFSET('E02'!$E$1,MATCH(C131,'E02'!G:G,0)+3,0)","v":0}]
[null,"E2",{"$f":"'E02'!$G$18","v":"A2.2"},null,{"$f":"'E02'!$I$18","v":"Inclusione degli impatti prevedibili sulla salute pubblica derivanti da altri scenari di rischio di catastrofi (ad esempio, inondazioni, eventi termici, terremoti)"},0,{"$f":"OFFSET('E02'!$E$1,MATCH(C132,'E02'!G:G,0)+3,0)","v":0}]
[null,"E2",{"$f":"'E02'!$G$31","v":"A2.3"},null,{"$f":"'E02'!$I$31","v":"Inclusione nella pianificazione delle catastrofi di condizioni di salute croniche preesistenti, comprese le malattie non trasmissibili"},0,{"$f":"OFFSET('E02'!$E$1,MATCH(C133,'E02'!G:G,0)+3,0)","v":0}]
[null,"E3",{"$f":"'E03'!$G$5","v":"A3.1"},null,{"$f":"'E03'!$I$5","v":"Finanziamenti per gli ambiti di resilienza relativi alla sanità pubblica"},0,{"$f":"OFFSET('E03'!$E$1,MATCH(C134,'E03'!G:G,0)+3,0)","v":0}]
[null,"E4",{"$f":"'E04'!$G$5","v":"A4.1"},null,{"$f":"'E04'!$I$5","v":"Conformità delle principali strutture sanitarie con i codici urbanistici ed edilizi resilienti"},0,{"$f":"OFFSET('E04'!$E$1,MATCH(C135,'E04'!G:G,0)+3,0)","v":0}]
[null,"E5",{"$f":"'E05'!$G$5","v":"A5.1"},null,{"$f":"'E05'!$I$5","v":"Conservazione e gestione dei servizi ecosistemici che forniscono benefici per la sanità pubblica"},0,{"$f":"OFFSET('E05'!$E$1,MATCH(C136,'E05'!G:G,0)+3,0)","v":0}]
[null,"E6",{"$f":"'E06'!$G$5","v":"A6.1"},null,{"$f":"'E06'!$I$5","v":"Disponibilità di personale sanitario con abilità e competenze pertinenti per la resilienza alle catastrofi"},0,{"$f":"OFFSET('E06'!$E$1,MATCH(C137,'E06'!G:G,0)+3,0)","v":0}]
[null,"E6",{"$f":"'E06'!$G$18","v":"A6.2"},null,{"$f":"'E06'!$I$18","v":"Condivisione dei dati del sistema sanitario pubblico con altre parti interessate"},0,{"$f":"OFFSET('E06'!$E$1,MATCH(C138,'E06'!G:G,0)+3,0)","v":0}]
[null,"E6",{"$f":"'E06'!$G$31","v":"A6.2.1"},null,{"$f":"'E06'!$I$31","v":"Condivisione di altri dati con le parti interessate del sistema sanitario pubblico"},0,{"$f":"OFFSET('E06'!$E$1,MATCH(C139,'E06'!G:G,0)+3,0)","v":0}]
[null,"E6",{"$f":"'E06'!$G$44","v":"A6.2.2"},null,{"$f":"'E06'!$I$44","v":"Protezione e accesso alle cartelle cliniche individuali"},0,{"$f":"OFFSET('E06'!$E$1,MATCH(C140,'E06'!G:G,0)+3,0)","v":0}]
[null,"E7",{"$f":"'E07'!$G$5","v":"A7.1"},null,{"$f":"'E07'!$I$5","v":"Efficacia del sistema sanitario pubblico nell'impegno della comunità nel contesto della gestione del rischio di catastrofi"},0,{"$f":"OFFSET('E07'!$E$1,MATCH(C141,'E07'!G:G,0)+3,0)","v":0}]
[null,"E7",{"$f":"'E07'!$G$18","v":"A7.1.2"},null,{"$f":"'E07'!$I$18","v":"Accesso della Comunità all'informazione in materia di sanità pubblica e fiducia nel suddetto materiale"},0,{"$f":"OFFSET('E07'!$E$1,MATCH(C142,'E07'!G:G,0)+3,0)","v":0}]
[null,"E7",{"$f":"'E07'!$G$31","v":"A7.2"},null,{"$f":"'E07'!$I$31","v":"Capacità della Comunità di \"tornare alla normalità\" - salute mentale"},0,{"$f":"OFFSET('E07'!$E$1,MATCH(C143,'E07'!G:G,0)+3,0)","v":0}]
[null,"E8",{"$f":"'E08'!$G$5","v":"A8.1"},null,{"$f":"'E08'!$I$5","v":"Rafforzamento della sicurezza strutturale e non strutturale e della funzionalità degli elementi dell'infrastruttura sanitaria pubblica non considerati in Essenziale 8"},0,{"$f":"OFFSET('E08'!$E$1,MATCH(C144,'E08'!G:G,0)+3,0)","v":0}]
[null,"E8",{"$f":"'E08'!$G$18","v":"A8.2"},null,{"$f":"'E08'!$I$18","v":"Capacità di intervento delle infrastrutture di sanità pubblica, ove non considerate dall’ Essenziale 8"},{"$f":"IF(G145=\"\",0,IF(G145=0,0,6-G145))","v":0},{"$f":"OFFSET('E08'!$E$1,MATCH(C145,'E08'!G:G,0)+3,0)","v":0}]
[null,"E8",{"$f":"'E08'!$G$31","v":"A8.3"},null,{"$f":"'E08'!$I$31","v":"Continuità di cura per chi è già malato, dove non considerato dall’Essenziale 8."},0,{"$f":"OFFSET('E08'!$E$1,MATCH(C146,'E08'!G:G,0)+3,0)","v":0}]
[null,"E9",{"$f":"'E09'!$G$5","v":"A9.1"},null,{"$f":"'E09'!$I$5","v":"Sistemi di allarme rapido per le emergenze sanitarie"},0,{"$f":"OFFSET('E09'!$E$1,MATCH(C147,'E09'!G:G,0)+3,0)","v":0}]
[null,"E9",{"$f":"'E09'!$G$18","v":"A9.2"},null,{"$f":"'E09'!$I$18","v":"Integrazione della sanità pubblica nella gestione delle emergenze"},0,{"$f":"OFFSET('E09'!$E$1,MATCH(C148,'E09'!G:G,0)+3,0)","v":0}]
[null,"E9",{"$f":"'E09'!$G$31","v":"A9.3"},null,{"$f":"'E09'!$I$31","v":"Considerazione delle popolazioni a più alto rischio o di quelle che vivono a casa con condizioni di salute compremesse preesistenti"},0,{"$f":"OFFSET('E09'!$E$1,MATCH(C149,'E09'!G:G,0)+3,0)","v":0}]
[null,"E9",{"$f":"'E09'!$G$44","v":"A9.4"},null,{"$f":"'E09'!$I$44","v":"Abilitatea de a livra materiale de sănătate publică persoanelor care au nevoie"},0,{"$f":"OFFSET('E09'!$E$1,MATCH(C150,'E09'!G:G,0)+3,0)","v":0}]
[null,"E10",{"$f":"'E10'!$G$5","v":"A10.1"},null,{"$f":"'E10'!$I$5","v":"Mitigare gli impatti a lungo termine sulla salute pubblica e sul benessere"},0,{"$f":"OFFSET('E10'!$E$1,MATCH(C151,'E10'!G:G,0)+3,0)","v":0}]
[null,"E10",{"$f":"'E10'!$G$18","v":"A10.2"},null,{"$f":"'E10'!$I$18","v":"Imparare e migliorare"},0,{"$f":"OFFSET('E10'!$E$1,MATCH(C152,'E10'!G:G,0)+3,0)","v":0}]

{"sheet":"E01","index":3,"n_rows":15,"n_cols":9,"rows_kept":15,"cut":false,"hidden":false,"merged":[[7,2,7,3],[8,2,13,3],[5,2,5,3],[6,2,6,3]]}
["a"]
[]
[null,"A.1 Integrazione della sanità pubblica e dell’amministrazione (Essenziale 1)",null,null,null,null,"A.1",null,"Integrazione della sanità pubblica e dell’amministrazione (Essenziale 1)"]
[]
[null,"A.1.1 Il settore sanitario rientra nella governabilità multisettoriale della gestione del rischio di catastrofi",null,null,null,null,"A1.1",null,"Il settore sanitario rientra nella governabilità multisettoriale della gestione del rischio di catastrofi"]
[null,"Domanda","Commenti"]
[]
[null,"Risposta","Fornire mezzi di verifica (spiegazione e prove)"]
[null,null,null,null,null,{"$f":"IF(E9=1,TRUE,FALSE)","v":false}]
[null,null,null,null,null,{"$f":"IF(E9=2,TRUE,FALSE)","v":false}]
[null,null,null,null,null,{"$f":"IF(E9=3,TRUE,FALSE)","v":false}]
[null,null,null,null,null,{"$f":"IF(E9=4,TRUE,FALSE)","v":false}]
[null,null,null,null,null,{"$f":"IF(E9=5,TRUE,FALSE)","v":false}]
[null,null,null,null,null,{"$f":"IF(E9=6,TRUE,FALSE)","v":false}]
[null,"Azioni per raggiungere la massima resilienza","Istituzione responsabile","Scala temporale"]

{"sheet":"E02","index":4,"n_rows":41,"n_cols":9,"rows_kept":41,"cut":false,"hidden":false,"merged":[[5,2,5,3],[6,2,6,3],[7,2,7,3],[18,2,18,3],[19,2,19,3],[20,2,20,3],[8,2,13,3],[21,2,26,3],[34,2,39,3],[31,2,31,3],[32,2,32,3],[33,2,33,3]]}
[]
[]
[null,"A.2 Integrazione degli scenari relativi alla sanità pubblica e alle catastrofi (Essenziale 2)",null,null,null,null,"A.2",null,"Integrazione degli scenari relativi alla sanità pubblica e alle catastrofi (Essenziale 2)"]
[]
[null,"A2.1 Inclusione di una serie di emergenze e catastrofi (ad esempio, epidemie/pandemie, carestie, penuria d'acqua, ecc.) come scenari di catastrofi a sé stante",null,null,null,null,"A2.1",null,"Inclusione di una serie di emergenze e catastrofi (ad esempio, epidemie/pandemie, carestie, penuria d'acqua, ecc.) come scenari di catastrofi a sé stante"]
[null,"Domanda","Commenti"]
[]
[null,"Risposta","Fornire mezzi di verifica (spiegazione e prove)"]
[null,null,null,null,null,{"$f":"IF(E9=1,TRUE,FALSE)","v":false}]
[null,null,null,null,null,{"$f":"IF(E9=2,TRUE,FALSE)","v":false}]
[null,null,null,null,null,{"$f":"IF(E9=3,TRUE,FALSE)","v":false}]
[null,null,null,null,null,{"$f":"IF(E9=4,TRUE,FALSE)","v":false}]
[null,null,null,null,null,{"$f":"IF(E9=5,TRUE,FALSE)","v":false}]
[null,null,null,null,null,{"$f":"IF(E9=6,TRUE,FALSE)","v":false}]
[null,"Azioni per raggiungere la massima resilienza","Istituzione responsabile","Scala temporale"]
[]
[]
[null,"A2.2 Inclusione degli impatti prevedibili sulla salute pubblica derivanti da altri scenari di rischio di catastrofi (ad esempio, inondazioni, eventi termici, terremoti)",null,null,null,null,"A2.2",null,"Inclusione degli impatti prevedibili sulla salute pubblica derivanti da altri scenari di rischio di catastrofi (ad esempio, inondazioni, eventi termici, terremoti)"]
[null,"Domanda","Commenti"]
[]
[null,"Risposta","Fornire mezzi di verifica (spiegazione e prove)"]
[null,null,null,null,null,{"$f":"IF(E22=1,TRUE,FALSE)","v":false}]
[null,null,null,null,null,{"$f":"IF(E22=2,TRUE,FALSE)","v":false}]
[null,null,null,null,null,{"$f":"IF(E22=3,TRUE,FALSE)","v":false}]
[null,null,null,null,null,{"$f":"IF(E22=4,TRUE,FALSE)","v":false}]
[null,null,null,null,null,{"$f":"IF(E22=5,TRUE,FALSE)","v":false}]
[null,null,null,null,null,{"$f":"IF(E22=6,TRUE,FALSE)","v":false}]
[null,"Azioni per raggiungere la massima resilienza","Istituzione responsabile","Scala temporale"]
[]
[]
[null,"A2.3 Inclusione nella pianificazione delle catastrofi di condizioni di salute croniche preesistenti, comprese le malattie non trasmissibili",null,null,null,null,"A2.3",null,"Inclusione nella pianificazione delle catastrofi di condizioni di salute croniche preesistenti, comprese le malattie non trasmissibili"]
[null,"Domanda","Commenti"]
[]
[null,"Risposta","Fornire mezzi di verifica (spiegazione e prove)"]
[null,null,null,null,null,{"$f":"IF(E35=1,TRUE,FALSE)","v":false}]
[null,null,null,null,null,{"$f":"IF(E35=2,TRUE,FALSE)","v":false}]
[null,null,null,null,null,{"$f":"IF(E35=3,TRUE,FALSE)","v":false}]
[null,null,null,null,null,{"$f":"IF(E35=4,TRUE,FALSE)","v":false}]
[null,null,null,null,null,{"$f":"IF(E35=5,TRUE,FALSE)","v":false}]
[null,null,null,null,null,{"$f":"IF(E35=6,TRUE,FALSE)","v":false}]
[null,"Azioni per raggiungere la massima resilienza","Istituzione responsabile","Scala temporale"]

{"sheet":"E03","index":5,"n_rows":15,"n_cols":9,"rows_kept":15,"cut":false,"hidden":false,"merged":[[4,1,4,3],[5,2,5,3],[6,2,6,3],[7,2,7,3],[8,2,13,3]]}
[]
[]
[null,"A3 Integrazione della sanità pubblica e delle finanze pubbliche (Essenziale 3)",null,null,null,null,"A3",null,"Integrazione della sanità pubblica e delle finanze pubbliche (Essenziale 3)"]
[]
[null,"A3.1 Finanziamenti per gli ambiti di resilienza relativi alla sanità pubblica",null,null,null,null,"A3.1",null,"Finanziamenti per gli ambiti di resilienza relativi alla sanità pubblica"]
[null,"Domanda","Commenti"]
[]
[null,"Risposta","Fornire mezzi di verifica (spiegazione e prove)"]
[null,null,null,null,null,{"$f":"IF(E9=1,TRUE,FALSE)","v":false}]
[null,null,null,null,null,{"$f":"IF(E9=2,TRUE,FALSE)","v":false}]
[null,null,null,null,null,{"$f":"IF(E9=3,TRUE,FALSE)","v":false}]
[null,null,null,null,null,{"$f":"IF(E9=4,TRUE,FALSE)","v":false}]
[null,null,null,null,null,{"$f":"IF(E9=5,TRUE,FALSE)","v":false}]
[null,null,null,null,null,{"$f":"IF(E9=6,TRUE,FALSE)","v":false}]
[null,"Azioni per raggiungere la massima resilienza","Istituzione responsabile","Scala temporale"]

{"sheet":"E04","index":6,"n_rows":15,"n_cols":9,"rows_kept":15,"cut":false,"hidden":false,"merged":[[4,1,4,3],[5,2,5,3],[6,2,6,3],[7,2,7,3],[8,2,13,3]]}
[]
[]
[null,"A4 Integrazione dei codici relativi alla sanità pubblica e all'uso del territorio/alla costruzione (Essenziale 4)",null,null,null,null,"A4",null,"Integrazione dei codici relativi alla sanità pubblica e all'uso del territorio/alla costruzione (Essenziale 4)"]
[]
[null,"A4.1 Conformità delle principali strutture sanitarie con i codici urbanistici ed edilizi resilienti",null,null,null,null,"A4.1",null,"Conformità delle principali strutture sanitarie con i codici urbanistici ed edilizi resilienti"]
[null,"Domanda","Commenti"]
[]
[null,"Risposta","Fornire mezzi di verifica (spiegazione e prove)"]
[null,null,null,null,null,{"$f":"IF(E9=1,TRUE,FALSE)","v":false}]
[null,null,null,null,null,{"$f":"IF(E9=2,TRUE,FALSE)","v":false}]
[null,null,null,null,null,{"$f":"IF(E9=3,TRUE,FALSE)","v":false}]
[null,null,null,null,null,{"$f":"IF(E9=4,TRUE,FALSE)","v":false}]
[null,null,null,null,null,{"$f":"IF(E9=5,TRUE,FALSE)","v":false}]
[null,null,null,null,null,{"$f":"IF(E9=6,TRUE,FALSE)","v":false}]
[null,"Azioni per raggiungere la massima resilienza","Istituzione responsabile","Scala temporale"]

{"sheet":"E05","index":7,"n_rows":15,"n_cols":9,"rows_kept":15,"cut":false,"hidden":false,"merged":[[4,1,4,3],[5,2,5,3],[6,2,6,3],[7,2,7,3],[8,2,13,3]]}
[]
[]
[null,"A5 Gestione dei servizi ecosistemici che incidono sulla sanità pubblica (Essenziale 5)",null,null,null,null,"A5",null,"Gestione dei servizi ecosistemici che incidono sulla sanità pubblica (Essenziale 5)"]
[]
[null,"A5.1 Conservazione e gestione dei servizi ecosistemici che forniscono benefici per la sanità pubblica",null,null,null,null,"A5.1",null,"Conservazione e gestione dei servizi ecosistemici che forniscono benefici per la sanità pubblica"]
[null,"Domanda","Commenti"]
[]
[null,"Risposta","Fornire mezzi di verifica (spiegazione e prove)"]
[null,null,null,null,null,{"$f":"IF(E9=1,TRUE,FALSE)","v":false}]
[null,null,null,null,null,{"$f":"IF(E9=2,TRUE,FALSE)","v":false}]
[null,null,null,null,null,{"$f":"IF(E9=3,TRUE,FALSE)","v":false}]
[null,null,null,null,null,{"$f":"IF(E9=4,TRUE,FALSE)","v":false}]
[null,null,null,null,null,{"$f":"IF(E9=5,TRUE,FALSE)","v":false}]
[null,null,null,null,null,{"$f":"IF(E9=6,TRUE,FALSE)","v":false}]
[null,"Azioni per raggiungere la massima resilienza","Istituzione responsabile","Scala temporale"]

{"sheet":"E06","index":8,"n_rows":54,"n_cols":9,"rows_kept":54,"cut":false,"hidden":false,"merged":[[4,1,4,3],[5,2,5,3],[6,2,6,3],[7,2,7,3],[17,1,17,3],[8,2,13,3],[18,2,18,3],[47,2,52,3],[34,2,39,3],[21,2,26,3],[19,2,19,3],[20,2,20,3],[30,1,30,3],[31,2,31,3],[32,2,32,3],[33,2,33,3],[43,1,43,3],[44,2,44,3],[45,2,45,3],[46,2,46,3]]}
[]
[]
[null,"A6 Integrazione della sanità pubblica e della capacità istituzionale (Essenziale 6)",null,null,null,null,"A6",null,"Integrazione della sanità pubblica e della capacità istituzionale (Essenziale 6)"]
[]
[null,"A6.1 Disponibilità di personale sanitario con abilità e competenze pertinenti per la resilienza alle catastrofi",null,null,null,null,"A6.1",null,"Disponibilità di personale sanitario con abilità e competenze pertinenti per la resilienza alle catastrofi"]
[null,"Domanda","Commenti"]
[]
[null,"Risposta","Fornire mezzi di verifica (spiegazione e prove)"]
[null,null,null,null,null,{"$f":"IF(E9=1,TRUE,FALSE)","v":false}]
[null,null,null,null,null,{"$f":"IF(E9=2,TRUE,FALSE)","v":false}]
[null,null,null,null,null,{"$f":"IF(E9=3,TRUE,FALSE)","v":false}]
[null,null,null,null,null,{"$f":"IF(E9=4,TRUE,FALSE)","v":false}]
[null,null,null,null,null,{"$f":"IF(E9=5,TRUE,FALSE)","v":false}]
[null,null,null,null,null,{"$f":"IF(E9=6,TRUE,FALSE)","v":false}]
[null,"Azioni per raggiungere la massima resilienza","Istituzione responsabile","Scala temporale"]
[]
[]
[null,"A6.2 Condivisione dei dati del sistema sanitario pubblico con altre parti interessate",null,null,null,null,"A6.2",null,"Condivisione dei dati del sistema sanitario pubblico con altre parti interessate"]
[null,"Domanda","Commenti"]
[]
[null,"Risposta","Fornire mezzi di verifica (spiegazione e prove)"]
[null,null,null,null,null,{"$f":"IF(E22=1,TRUE,FALSE)","v":false}]
[null,null,null,null,null,{"$f":"IF(E22=2,TRUE,FALSE)","v":false}]
[null,null,null,null,null,{"$f":"IF(E22=3,TRUE,FALSE)","v":false}]
[null,null,null,null,null,{"$f":"IF(E22=4,TRUE,FALSE)","v":false}]
[null,null,null,null,null,{"$f":"IF(E22=5,TRUE,FALSE)","v":false}]
[null,null,null,null,null,{"$f":"IF(E22=6,TRUE,FALSE)","v":false}]
[null,"Azioni per raggiungere la massima resilienza","Istituzione responsabile","Scala temporale"]
[]
[]
[null,"A6.2.1 Condivisione di altri dati con le parti interessate del sistema sanitario pubblico",null,null,null,null,"A6.2.1",null,"Condivisione di altri dati con le parti interessate del sistema sanitario pubblico"]
[null,"Domanda","Commenti"]
[]
[null,"Risposta","Fornire mezzi di verifica (spiegazione e prove)"]
[null,null,null,null,null,{"$f":"IF(E35=1,TRUE,FALSE)","v":false}]
[null,null,null,null,null,{"$f":"IF(E35=2,TRUE,FALSE)","v":false}]
[null,null,null,null,null,{"$f":"IF(E35=3,TRUE,FALSE)","v":false}]
[null,null,null,null,null,{"$f":"IF(E35=4,TRUE,FALSE)","v":false}]
[null,null,null,null,null,{"$f":"IF(E35=5,TRUE,FALSE)","v":false}]
[null,null,null,null,null,{"$f":"IF(E35=6,TRUE,FALSE)","v":false}]
[null,"Azioni per raggiungere la massima resilienza","Istituzione responsabile","Scala temporale"]
[]
[]
[null,"A6.2.2 Protezione e accesso alle cartelle cliniche individuali",null,null,null,null,"A6.2.2",null,"Protezione e accesso alle cartelle cliniche individuali"]
[null,"Domanda","Commenti"]
[]
[null,"Risposta","Fornire mezzi di verifica (spiegazione e prove)"]
[null,null,null,null,null,{"$f":"IF(E48=1,TRUE,FALSE)","v":false}]
[null,null,null,null,null,{"$f":"IF(E48=2,TRUE,FALSE)","v":false}]
[null,null,null,null,null,{"$f":"IF(E48=3,TRUE,FALSE)","v":false}]
[null,null,null,null,null,{"$f":"IF(E48=4,TRUE,FALSE)","v":false}]
[null,null,null,null,null,{"$f":"IF(E48=5,TRUE,FALSE)","v":false}]
[null,null,null,null,null,{"$f":"IF(E48=6,TRUE,FALSE)","v":false}]
[null,"Azioni per raggiungere la massima resilienza","Istituzione responsabile","Scala temporale"]

{"sheet":"E07","index":9,"n_rows":43,"n_cols":9,"rows_kept":43,"cut":false,"hidden":false,"merged":[[4,1,4,3],[5,2,5,3],[6,2,6,3],[7,2,7,3],[17,1,17,3],[18,2,18,3],[8,2,13,3],[21,2,26,3],[34,2,39,3],[19,2,19,3],[20,2,20,3],[30,1,30,3],[31,2,31,3],[32,2,32,3],[33,2,33,3]]}
[]
[]
[null,"A7 Integrazione della salute pubblica e della capacità della società (Essenziale 7)",null,null,null,null,"A7",null,"Integrazione della salute pubblica e della capacità della società (Essenziale 7)"]
[null,null,null,null,null,null,""]
[null,"A7.1 Efficacia del sistema sanitario pubblico nell'impegno della comunità nel contesto della gestione del rischio di catastrofi",null,null,null,null,"A7.1",null,"Efficacia del sistema sanitario pubblico nell'impegno della comunità nel contesto della gestione del rischio di catastrofi"]
[null,"Domanda","Commenti",null,null,null,""]
[null,null,null,null,null,null,""]
[null,"Risposta","Fornire mezzi di verifica (spiegazione e prove)",null,null,null,""]
[null,null,null,null,null,{"$f":"IF(E9=1,TRUE,FALSE)","v":false},""]
[null,null,null,null,null,{"$f":"IF(E9=2,TRUE,FALSE)","v":false},""]
[null,null,null,null,null,{"$f":"IF(E9=3,TRUE,FALSE)","v":false},""]
[null,null,null,null,null,{"$f":"IF(E9=4,TRUE,FALSE)","v":false},""]
[null,null,null,null,null,{"$f":"IF(E9=5,TRUE,FALSE)","v":false},""]
[null,null,null,null,null,{"$f":"IF(E9=6,TRUE,FALSE)","v":false},""]
[null,"Azioni per raggiungere la massima resilienza","Istituzione responsabile","Scala temporale",null,null,""]
[null,null,null,null,null,null,""]
[null,null,null,null,null,null,""]
[null,"A7.1.2 Accesso della Comunità all'informazione in materia di sanità pubblica e fiducia nel suddetto materiale",null,null,null,null,"A7.1.2",null,"Accesso della Comunità all'informazione in materia di sanità pubblica e fiducia nel suddetto materiale"]
[null,"Domanda","Commenti",null,null,null,""]
[null,null,null,null,null,null,""]
[null,"Risposta","Fornire mezzi di verifica (spiegazione e prove)",null,null,null,""]
[null,null,null,null,null,{"$f":"IF(E22=1,TRUE,FALSE)","v":false},""]
[null,null,null,null,null,{"$f":"IF(E22=2,TRUE,FALSE)","v":false},""]
[null,null,null,null,null,{"$f":"IF(E22=3,TRUE,FALSE)","v":false},""]
[null,null,null,null,null,{"$f":"IF(E22=4,TRUE,FALSE)","v":false},""]
[null,null,null,null,null,{"$f":"IF(E22=5,TRUE,FALSE)","v":false},""]
[null,null,null,null,null,{"$f":"IF(E22=6,TRUE,FALSE)","v":false},""]
[null,"Azioni per raggiungere la massima resilienza","Istituzione responsabile","Scala temporale",null,null,""]
[null,null,null,null,null,null,""]
[null,null,null,null,null,null,""]
[null,"A7.2 Capacità della Comunità di \"tornare alla normalità\" - salute mentale",null,null,null,null,"A7.2",null,"Capacità della Comunità di \"tornare alla normalità\" - salute mentale"]
[null,"Domanda","Commenti",null,null,null,""]
[null,null,null,null,null,null,""]
[null,"Risposta","Fornire mezzi di verifica (spiegazione e prove)",null,null,null,""]
[null,null,null,null,null,{"$f":"IF(E35=1,TRUE,FALSE)","v":false},""]
[null,null,null,null,null,{"$f":"IF(E35=2,TRUE,FALSE)","v":false},""]
[null,null,null,null,null,{"$f":"IF(E35=3,TRUE,FALSE)","v":false},""]
[null,null,null,null,null,{"$f":"IF(E35=4,TRUE,FALSE)","v":false},""]
[null,null,null,null,null,{"$f":"IF(E35=5,TRUE,FALSE)","v":false},""]
[null,null,null,null,null,{"$f":"IF(E35=6,TRUE,FALSE)","v":false},""]
[null,"Azioni per raggiungere la massima resilienza","Istituzione responsabile","Scala temporale",null,null,""]
[null,null,null,null,null,null,""]
[null,null,null,null,null,null,""]

{"sheet":"E08","index":10,"n_rows":43,"n_cols":9,"rows_kept":43,"cut":false,"hidden":false,"merged":[[34,2,39,3],[21,2,26,3],[8,2,13,3],[33,2,33,3],[4,1,4,3],[5,2,5,3],[6,2,6,3],[7,2,7,3],[17,1,17,3],[18,2,18,3],[19,2,19,3],[20,2,20,3],[30,1,30,3],[31,2,31,3],[32,2,32,3]]}
[]
[]
[null,"A8 Integrazione della salute pubblica e della resilienza delle infrastrutture (Essenziale 8)",null,null,null,null,"A8",null,"Integrazione della salute pubblica e della resilienza delle infrastrutture (Essenziale 8)"]
[null,null,null,null,null,null,""]
[null,"A8.1 Rafforzamento della sicurezza strutturale e non strutturale e della funzionalità degli elementi dell'infrastruttura sanitaria pubblica non considerati in Essenziale 8",null,null,null,null,"A8.1",null,"Rafforzamento della sicurezza strutturale e non strutturale e della funzionalità degli elementi dell'infrastruttura sanitaria pubblica non considerati in Essenziale 8"]
[null,"Domanda","Commenti",null,null,null,""]
[null,null,null,null,null,null,""]
[null,"Risposta","Fornire mezzi di verifica (spiegazione e prove)",null,null,null,""]
[null,null,null,null,null,{"$f":"IF(E9=1,TRUE,FALSE)","v":false},""]
[null,null,null,null,null,{"$f":"IF(E9=2,TRUE,FALSE)","v":false},""]
[null,null,null,null,null,{"$f":"IF(E9=3,TRUE,FALSE)","v":false},""]
[null,null,null,null,null,{"$f":"IF(E9=4,TRUE,FALSE)","v":false},""]
[null,null,null,null,null,{"$f":"IF(E9=5,TRUE,FALSE)","v":false},""]
[null,null,null,null,null,{"$f":"IF(E9=6,TRUE,FALSE)","v":false},""]
[null,"Azioni per raggiungere la massima resilienza","Istituzione responsabile","Scala temporale",null,null,""]
[null,null,null,null,null,null,""]
[null,null,null,null,null,null,""]
[null,"A8.2 Capacità di intervento delle infrastrutture di sanità pubblica, ove non considerate dall’ Essenziale 8",null,null,null,null,"A8.2",null,"Capacità di intervento delle infrastrutture di sanità pubblica, ove non considerate dall’ Essenziale 8"]
[null,"Domanda","Commenti",null,null,null,""]
[null,null,null,null,null,null,""]
[null,"Risposta","Fornire mezzi di verifica (spiegazione e prove)",null,null,null,""]
[null,null,null,null,null,{"$f":"IF(E22=1,TRUE,FALSE)","v":false},""]
[null,null,null,null,null,{"$f":"IF(E22=2,TRUE,FALSE)","v":false},""]
[null,null,null,null,null,{"$f":"IF(E22=3,TRUE,FALSE)","v":false},""]
[null,null,null,null,null,{"$f":"IF(E22=4,TRUE,FALSE)","v":false},""]
[null,null,null,null,null,{"$f":"IF(E22=5,TRUE,FALSE)","v":false},""]
[null,null,null,null,null,{"$f":"IF(E22=6,TRUE,FALSE)","v":false},""]
[null,"Azioni per raggiungere la massima resilienza","Istituzione responsabile","Scala temporale",null,null,""]
[null,null,null,null,null,null,""]
[null,null,null,null,null,null,""]
[null,"A8.3 Continuità di cura per chi è già malato, dove non considerato dall’Essenziale 8.",null,null,null,null,"A8.3",null,"Continuità di cura per chi è già malato, dove non considerato dall’Essenziale 8."]
[null,"Domanda","Commenti",null,null,null,""]
[null,null,null,null,null,null,""]
[null,"Risposta","Fornire mezzi di verifica (spiegazione e prove)",null,null,null,""]
[null,null,null,null,null,{"$f":"IF(E35=1,TRUE,FALSE)","v":false},""]
[null,null,null,null,null,{"$f":"IF(E35=2,TRUE,FALSE)","v":false},""]
[null,null,null,null,null,{"$f":"IF(E35=3,TRUE,FALSE)","v":false},""]
[null,null,null,null,null,{"$f":"IF(E35=4,TRUE,FALSE)","v":false},""]
[null,null,null,null,null,{"$f":"IF(E35=5,TRUE,FALSE)","v":false},""]
[null,null,null,null,null,{"$f":"IF(E35=6,TRUE,FALSE)","v":false},""]
[null,"Azioni per raggiungere la massima resilienza","Istituzione responsabile","Scala temporale",null,null,""]
[null,null,null,null,null,null,""]
[null,null,null,null,null,null,""]

{"sheet":"E09","index":11,"n_rows":56,"n_cols":9,"rows_kept":56,"cut":false,"hidden":false,"merged":[[47,2,52,3],[34,2,39,3],[21,2,26,3],[30,1,30,3],[31,2,31,3],[32,2,32,3],[33,2,33,3],[43,1,43,3],[44,2,44,3],[45,2,45,3],[46,2,46,3],[19,2,19,3],[20,2,20,3],[4,1,4,3],[5,2,5,3],[6,2,6,3],[7,2,7,3],[17,1,17,3],[18,2,18,3],[8,2,13,3]]}
[]
[]
[null,"A9 Integrazione della sanità pubblica e risposta alle catastrofi (Essenziale 9)",null,null,null,null,"A9",null,"Integrazione della sanità pubblica e risposta alle catastrofi (Essenziale 9)"]
[null,null,null,null,null,null,""]
[null,"A9.1 Sistemi di allarme rapido per le emergenze sanitarie",null,null,null,null,"A9.1",null,"Sistemi di allarme rapido per le emergenze sanitarie"]
[null,"Domanda","Commenti",null,null,null,""]
[null,null,null,null,null,null,""]
[null,"Risposta","Fornire mezzi di verifica (spiegazione e prove)",null,null,null,""]
[null,null,null,null,null,{"$f":"IF(E9=1,TRUE,FALSE)","v":false},""]
[null,null,null,null,null,{"$f":"IF(E9=2,TRUE,FALSE)","v":false},""]
[null,null,null,null,null,{"$f":"IF(E9=3,TRUE,FALSE)","v":false},""]
[null,null,null,null,null,{"$f":"IF(E9=4,TRUE,FALSE)","v":false},""]
[null,null,null,null,null,{"$f":"IF(E9=5,TRUE,FALSE)","v":false},""]
[null,null,null,null,null,{"$f":"IF(E9=6,TRUE,FALSE)","v":false},""]
[null,"Azioni per raggiungere la massima resilienza","Istituzione responsabile","Scala temporale",null,null,""]
[null,null,null,null,null,null,""]
[null,null,null,null,null,null,""]
[null,"A9.2 Integrazione della sanità pubblica nella gestione delle emergenze",null,null,null,null,"A9.2",null,"Integrazione della sanità pubblica nella gestione delle emergenze"]
[null,"Domanda","Commenti",null,null,null,""]
[null,null,null,null,null,null,""]
[null,"Risposta","Fornire mezzi di verifica (spiegazione e prove)",null,null,null,""]
[null,null,null,null,null,{"$f":"IF(E22=1,TRUE,FALSE)","v":false},""]
[null,null,null,null,null,{"$f":"IF(E22=2,TRUE,FALSE)","v":false},""]
[null,null,null,null,null,{"$f":"IF(E22=3,TRUE,FALSE)","v":false},""]
[null,null,null,null,null,{"$f":"IF(E22=4,TRUE,FALSE)","v":false},""]
[null,null,null,null,null,{"$f":"IF(E22=5,TRUE,FALSE)","v":false},""]
[null,null,null,null,null,{"$f":"IF(E22=6,TRUE,FALSE)","v":false},""]
[null,"Azioni per raggiungere la massima resilienza","Istituzione responsabile","Scala temporale",null,null,""]
[null,null,null,null,null,null,""]
[null,null,null,null,null,null,""]
[null,"A9.3 Considerazione delle popolazioni a più alto rischio o di quelle che vivono a casa con condizioni di salute compremesse preesistenti",null,null,null,null,"A9.3",null,"Considerazione delle popolazioni a più alto rischio o di quelle che vivono a casa con condizioni di salute compremesse preesistenti"]
[null,"Domanda","Commenti",null,null,null,""]
[null,null,null,null,null,null,""]
[null,"Risposta","Fornire mezzi di verifica (spiegazione e prove)",null,null,null,""]
[null,null,null,null,null,{"$f":"IF(E35=1,TRUE,FALSE)","v":false},""]
[null,null,null,null,null,{"$f":"IF(E35=2,TRUE,FALSE)","v":false},""]
[null,null,null,null,null,{"$f":"IF(E35=3,TRUE,FALSE)","v":false},""]
[null,null,null,null,null,{"$f":"IF(E35=4,TRUE,FALSE)","v":false},""]
[null,null,null,null,null,{"$f":"IF(E35=5,TRUE,FALSE)","v":false},""]
[null,null,null,null,null,{"$f":"IF(E35=6,TRUE,FALSE)","v":false},""]
[null,"Azioni per raggiungere la massima resilienza","Istituzione responsabile","Scala temporale",null,null,""]
[null,null,null,null,null,null,""]
[null,null,null,null,null,null,""]
[null,"A9.4 Abilitatea de a livra materiale de sănătate publică persoanelor care au nevoie",null,null,null,null,"A9.4",null,"Abilitatea de a livra materiale de sănătate publică persoanelor care au nevoie"]
[null,"Domanda","Commenti",null,null,null,""]
[null,null,null,null,null,null,""]
[null,"Risposta","Fornire mezzi di verifica (spiegazione e prove)",null,null,null,""]
[null,null,null,null,null,{"$f":"IF(E48=1,TRUE,FALSE)","v":false},""]
[null,null,null,null,null,{"$f":"IF(E48=2,TRUE,FALSE)","v":false},""]
[null,null,null,null,null,{"$f":"IF(E48=3,TRUE,FALSE)","v":false},""]
[null,null,null,null,null,{"$f":"IF(E48=4,TRUE,FALSE)","v":false},""]
[null,null,null,null,null,{"$f":"IF(E48=5,TRUE,FALSE)","v":false},""]
[null,null,null,null,null,{"$f":"IF(E48=6,TRUE,FALSE)","v":false},""]
[null,"Azioni per raggiungere la massima resilienza","Istituzione responsabile","Scala temporale",null,null,""]
[null,null,null,null,null,null,""]
[null,null,null,null,null,null,""]

{"sheet":"E10","index":12,"n_rows":28,"n_cols":9,"rows_kept":28,"cut":false,"hidden":false,"merged":[[4,1,4,3],[5,2,5,3],[6,2,6,3],[7,2,7,3],[17,1,17,3],[21,2,26,3],[8,2,13,3],[19,2,19,3],[20,2,20,3],[18,2,18,3]]}
[]
[]
[null,"A10 Integrazione della sanità pubblica e recupero/ricostruzione (Essenziale 10)  ",null,null,null,null,"A10",null,"Integrazione della sanità pubblica e recupero/ricostruzione (Essenziale 10)  "]
[]
[null,"A10.1 Mitigare gli impatti a lungo termine sulla salute pubblica e sul benessere",null,null,null,null,"A10.1",null,"Mitigare gli impatti a lungo termine sulla salute pubblica e sul benessere"]
[null,"Domanda","Commenti"]
[]
[null,"Risposta","Fornire mezzi di verifica (spiegazione e prove)"]
[null,null,null,null,null,{"$f":"IF(E9=1,TRUE,FALSE)","v":false}]
[null,null,null,null,null,{"$f":"IF(E9=2,TRUE,FALSE)","v":false}]
[null,null,null,null,null,{"$f":"IF(E9=3,TRUE,FALSE)","v":false}]
[null,null,null,null,null,{"$f":"IF(E9=4,TRUE,FALSE)","v":false}]
[null,null,null,null,null,{"$f":"IF(E9=5,TRUE,FALSE)","v":false}]
[null,null,null,null,null,{"$f":"IF(E9=6,TRUE,FALSE)","v":false}]
[null,"Azioni per raggiungere la massima resilienza","Istituzione responsabile","Scala temporale"]
[]
[]
[null,"A10.2 Imparare e migliorare",null,null,null,null,"A10.2",null,"Imparare e migliorare"]
[null,"Domanda","Commenti"]
[]
[null,"Risposta","Fornire mezzi di verifica (spiegazione e prove)"]
[null,null,null,null,null,{"$f":"IF(E22=1,TRUE,FALSE)","v":false}]
[null,null,null,null,null,{"$f":"IF(E22=2,TRUE,FALSE)","v":false}]
[null,null,null,null,null,{"$f":"IF(E22=3,TRUE,FALSE)","v":false}]
[null,null,null,null,null,{"$f":"IF(E22=4,TRUE,FALSE)","v":false}]
[null,null,null,null,null,{"$f":"IF(E22=5,TRUE,FALSE)","v":false}]
[null,null,null,null,null,{"$f":"IF(E22=6,TRUE,FALSE)","v":false}]
[null,"Azioni per raggiungere la massima resilienza","Istituzione responsabile","Scala temporale"]

{"sheet":"About","index":13,"n_rows":0,"n_cols":0,"rows_kept":0,"cut":false,"hidden":false,"merged":[]}